fUST/lending_fUST_20250902
["ID","MTS","AMOUNT","RATE_DAILY","PERIOD"]
[383028349,1756822239023,-480.84,0.00013698,2]
[383028351,1756822239033,-480.0,0.00013698,2]
[383028353,1756822239043,-480.0,0.00013698,2]
[383028355,1756822239052,-480.0,0.00013698,2]
[383028357,1756822239063,-480.0,0.00013698,2]
[383028359,1756822239073,-292.27771045,0.00013698,2]
[383028361,1756822239083,-480.0,0.00013698,2]
[383028363,1756822239092,-480.0,0.00013698,2]
[383028365,1756822239102,-480.0,0.00013698,2]
[383028367,1756822239112,-480.0,0.00013698,2]
[383028369,1756822239121,-480.0,0.00013698,2]
[383028371,1756822239131,-480.0,0.00013698,2]
[383028373,1756822239140,-480.0,0.00013698,2]
[383028375,1756822239149,-480.0,0.00013698,2]
[383028377,1756822239158,-480.0,0.00013698,2]
[383028379,1756822239170,-480.0,0.00013698,2]
[383028381,1756822239179,-480.0,0.00013698,2]
[383028383,1756822239189,-480.0,0.00013698,2]
[383028385,1756822239198,-480.0,0.00013698,2]
[383028387,1756822239208,-480.0,0.00013698,2]
[383028389,1756822239218,-750.17,0.00013698,2]
[383028391,1756822239227,-480.0,0.00013698,2]
[383028393,1756822239236,-480.0,0.00013698,2]
[383028395,1756822239246,-480.0,0.00013698,2]
[383028397,1756822239256,-480.0,0.00013698,2]
[383028399,1756822239266,-553.39,0.00013698,2]
[383028401,1756822239276,-480.0,0.00013698,2]
[383028403,1756822239285,-480.0,0.00013698,2]
[383028405,1756822239295,-480.0,0.00013698,2]
[383028407,1756822239304,-480.0,0.00013698,2]
[383028409,1756822239314,-395.05,0.00013698,2]
[383028411,1756822239323,-480.0,0.00013698,2]
[383028413,1756822239333,-480.0,0.00013698,2]
[383028415,1756822239342,-480.0,0.00013698,2]
[383028416,1756822239352,-480.0,0.00013698,2]
[383028418,1756822239362,-622.34,0.00013698,2]
[383028420,1756822239372,-480.0,0.00013698,2]
[383028422,1756822239381,-480.0,0.00013698,2]
[383028424,1756822239391,-480.0,0.00013698,2]
[383028426,1756822239401,-480.0,0.00013698,2]
[383028429,1756822239412,-480.0,0.00013698,2]
[383028431,1756822239422,-480.0,0.00013698,2]
[383028432,1756822239431,-480.0,0.00013698,2]
[383028435,1756822239441,-1857.69,0.00013698,2]
[383028437,1756822239451,-480.0,0.00013698,2]
[383028438,1756822239461,-480.0,0.00013698,2]
[383028441,1756822239471,-480.0,0.00013698,2]
[383028443,1756822239480,-1223.45,0.00013698,2]
[383028444,1756822239491,-480.0,0.00013698,2]
[383028447,1756822239502,-480.0,0.00013698,2]
[383028448,1756822239511,-480.0,0.00013698,2]
[383028450,1756822239521,-480.0,0.00013698,2]
[383028452,1756822239530,-480.0,0.00013698,2]
[383028454,1756822239539,-480.0,0.00013698,2]
[383028456,1756822239550,-480.0,0.00013698,2]
[383028458,1756822239560,-480.0,0.00013698,2]
[383028460,1756822239570,-480.0,0.00013698,2]
[383028462,1756822239580,-480.0,0.00013698,2]
[383028465,1756822239589,-480.0,0.00013698,2]
[383028467,1756822239599,-480.0,0.00013698,2]
[383028469,1756822239610,-480.0,0.00013698,2]
[383028470,1756822239622,-615.27,0.00013698,2]
[383028472,1756822239636,-480.0,0.00013698,2]
[383028474,1756822239646,-480.0,0.00013698,2]
[383028476,1756822239655,-480.0,0.00013698,2]
[383028478,1756822239668,-480.0,0.00013698,2]
[383028480,1756822239678,-480.0,0.00013698,2]
[383028482,1756822239688,-480.0,0.00013698,2]
[383028484,1756822239698,-480.0,0.00013698,2]
[383028486,1756822239708,-501.46,0.00013698,2]
[383028488,1756822239719,-480.0,0.00013698,2]
[383028490,1756822239728,-480.0,0.00013698,2]
[383028492,1756822239738,-2471.74,0.00013698,2]
[383028494,1756822239748,-480.0,0.00013698,2]
[383028496,1756822239758,-151.0,0.00013698,2]
[383028498,1756822239767,-151.0,0.00013698,2]
[383028500,1756822239776,-151.0,0.00013698,2]
[383028503,1756822239786,-151.0,0.00013698,2]
[383028505,1756822239796,-288.480503,0.00013698,2]
[383028507,1756822239806,-480.0,0.00013698,2]
[383028509,1756822239816,-480.0,0.00013698,2]
[383028511,1756822239825,-1048.16,0.00013698,2]
[383028513,1756822239834,-497.24,0.00013698,2]
[383028515,1756822239844,-501.54,0.00013698,2]
[383028517,1756822239854,-480.0,0.00013698,2]
[383028519,1756822239864,-480.0,0.00013698,2]
[383028521,1756822239873,-877.72,0.00013698,2]
[383028523,1756822239883,-480.0,0.00013698,2]
[383028525,1756822239892,-480.0,0.00013698,2]
[383028527,1756822239903,-848.46,0.00013698,2]
[383028529,1756822239915,-480.0,0.00013698,2]
[383028531,1756822239924,-677.4,0.00013698,2]
[383028533,1756822239934,-480.0,0.00013698,2]
[383028536,1756822239943,-480.0,0.00013698,2]
[383028538,1756822239953,-480.0,0.00013698,2]
[383028541,1756822239962,-480.0,0.00013698,2]
[383028544,1756822239972,-480.0,0.00013698,2]
[383028547,1756822239981,-573.22,0.00013698,2]
[383028561,1756822240121,-322.25324007,0.00013698,2]
[383028562,1756822240132,-480.0,0.00013698,2]
[383028563,1756822240144,-480.0,0.00013698,2]
[383028564,1756822240153,-480.0,0.00013698,2]
[383028565,1756822240165,-480.0,0.00013698,2]
[383028566,1756822240175,-480.0,0.00013698,2]
[383028567,1756822240185,-480.0,0.00013698,2]
[383028568,1756822240198,-611.65,0.00013698,2]
[383028569,1756822240208,-480.0,0.00013698,2]
[383028570,1756822240218,-480.0,0.00013698,2]
[383028571,1756822240227,-480.0,0.00013698,2]
[383028572,1756822240237,-422.7266373,0.00013698,2]
[383028573,1756822240247,-512.3,0.00013698,2]
[383028574,1756822240257,-480.0,0.00013698,2]
[383028575,1756822240267,-151.0,0.00013698,2]
[383028576,1756822240277,-151.0,0.00013698,2]
[383028577,1756822240287,-480.0,0.00013698,2]
[383028579,1756822240297,-500.0,0.00013698,2]
[383028581,1756822240307,-827.876128,0.00013699,2]
[383028582,1756822240317,-187.16428715,0.00013781,2]
[383028584,1756822240327,-187.16428715,0.00013963,2]
[383028585,1756822240336,-600.0,0.00013971,2]
[383028586,1756822240346,-151.0,0.00013972,2]
[383028587,1756822240355,-151.0,0.00013972,2]
[383028588,1756822240365,-151.0,0.00013972,2]
[383028589,1756822240375,-151.0,0.00013972,2]
[383028590,1756822240384,-151.0,0.00013972,2]
[383028591,1756822240394,-188.978242,0.00013972,2]
[383028592,1756822240403,-480.0,0.00013972,2]
[383028593,1756822240416,-355.03,0.00013972,2]
[383028594,1756822240426,-166.85,0.00013972,2]
[383028595,1756822240436,-480.0,0.00013972,2]
[383028596,1756822240445,-550.98,0.00013972,2]
[383028597,1756822240455,-480.0,0.00013972,2]
[383028598,1756822240464,-249.71,0.00013972,2]
[383028599,1756822240474,-480.0,0.00013972,2]
[383028600,1756822240483,-480.0,0.00013972,2]
[383028602,1756822240493,-480.0,0.00013972,2]
[383028604,1756822240502,-480.0,0.00013972,2]
[383028606,1756822240512,-480.0,0.00013972,2]
[383028608,1756822240521,-480.0,0.00013972,2]
[383028610,1756822240531,-480.0,0.00013972,2]
[383028612,1756822240541,-480.0,0.00013972,2]
[383028614,1756822240551,-480.0,0.00013972,2]
[383028616,1756822240561,-480.0,0.00013972,2]
[383028618,1756822240570,-480.0,0.00013972,2]
[383028621,1756822240580,-494.13,0.00013972,2]
[383028622,1756822240589,-75.74700082,0.00013972,2]
[383028626,1756822240615,-404.25299918,0.00013972,2]
[383028628,1756822240626,-261.74700082,0.00013972,2]
[383028630,1756822240639,-218.25299918,0.00013972,2]
[383028632,1756822240649,-480.0,0.00013972,2]
[383028635,1756822240659,-211.59,0.00013972,2]
[383028637,1756822240675,-196.51,0.00013972,2]
[383028639,1756822240685,-364.74,0.00013972,2]
[383028641,1756822240694,-330.4,0.00013972,2]
[383028643,1756822240704,-245.48,0.00013972,2]
[383028645,1756822240716,-514.26920811,0.00013972,2]
[383028647,1756822240727,-480.0,0.00013972,2]
[383028649,1756822240737,-480.0,0.00013972,2]
[383028651,1756822240748,-258.14,0.00013972,2]
[383028653,1756822240758,-257.88,0.00013972,2]
[383028655,1756822240769,-480.0,0.00013972,2]
[383028657,1756822240778,-480.0,0.00013972,2]
[383028659,1756822240789,-602.45,0.00013972,2]
[383028661,1756822240799,-480.0,0.00013972,2]
[383028663,1756822240808,-213.75,0.00013972,2]
[383028665,1756822240819,-480.0,0.00013972,2]
[383028667,1756822240829,-480.0,0.00013972,2]
[383028669,1756822240839,-583.27,0.00013972,2]
[383028671,1756822240850,-393.75,0.00013972,2]
[383028673,1756822240860,-183.13,0.00013972,2]
[383028675,1756822240870,-334.85,0.00013972,2]
[383028677,1756822240880,-474.05,0.00013972,2]
[383028679,1756822240890,-480.0,0.00013972,2]
[383028681,1756822240900,-480.0,0.00013972,2]
[383028683,1756822240910,-276.23,0.00013972,2]
[383028685,1756822240921,-480.0,0.00013972,2]
[383028687,1756822240931,-480.0,0.00013972,2]
[383028689,1756822240941,-480.0,0.00013972,2]
[383028691,1756822240950,-480.0,0.00013972,2]
[383028693,1756822240960,-291.28768139,0.00013972,2]
[383028695,1756822240969,-745.32,0.00013972,2]
[383028697,1756822240979,-480.0,0.00013972,2]
[383028699,1756822240990,-236.45,0.00013972,2]
[383028701,1756822240999,-480.0,0.00013972,2]
[383028703,1756822241008,-545.94,0.00013972,2]
[383028705,1756822241018,-480.0,0.00013972,2]
[383028707,1756822241028,-480.0,0.00013972,2]
[383028709,1756822241037,-480.0,0.00013972,2]
[383028711,1756822241047,-480.0,0.00013972,2]
[383028713,1756822241057,-480.0,0.00013972,2]
[383028715,1756822241066,-439.89,0.00013972,2]
[383028717,1756822241076,-480.0,0.00013972,2]
[383028719,1756822241085,-288.29,0.00013972,2]
[383028721,1756822241094,-480.0,0.00013972,2]
[383028723,1756822241103,-171.92,0.00013972,2]
[383028725,1756822241113,-480.0,0.00013972,2]
[383028727,1756822241123,-519.47,0.00013972,2]
[383028729,1756822241133,-1084.74,0.00013972,2]
[383028731,1756822241142,-347.32,0.00013972,2]
[383028733,1756822241152,-431.66,0.00013972,2]
[383028735,1756822241161,-338.91,0.00013972,2]
[383028737,1756822241173,-480.0,0.00013972,2]
[383028739,1756822241182,-480.0,0.00013972,2]
[383028741,1756822241192,-221.61,0.00013972,2]
[383028743,1756822241201,-480.0,0.00013972,2]
[383028745,1756822241210,-452.22,0.00013972,2]
[383028747,1756822241220,-480.0,0.00013972,2]
[383028749,1756822241229,-480.0,0.00013972,2]
[383028751,1756822241239,-480.0,0.00013972,2]
[383028753,1756822241249,-480.0,0.00013972,2]
[383028755,1756822241259,-480.0,0.00013972,2]
[383028757,1756822241268,-480.0,0.00013972,2]
[383028759,1756822241278,-750.17,0.00013972,2]
[383028761,1756822241288,-480.0,0.00013972,2]
[383028763,1756822241297,-480.0,0.00013972,2]
[383028765,1756822241307,-480.0,0.00013972,2]
[383028768,1756822241317,-553.39,0.00013972,2]
[383028769,1756822241326,-480.0,0.00013972,2]
[383028771,1756822241337,-480.0,0.00013972,2]
[383028774,1756822241347,-480.0,0.00013972,2]
[383028776,1756822241356,-231.17,0.00013972,2]
[383028777,1756822241366,-206.6,0.00013972,2]
[383028780,1756822241375,-480.0,0.00013972,2]
[383028781,1756822241385,-259.85,0.00013972,2]
[383028783,1756822241395,-252.13,0.00013972,2]
[383028785,1756822241405,-480.0,0.00013972,2]
[383028788,1756822241419,-1857.69,0.00013972,2]
[383028790,1756822241429,-399.99,0.00013972,2]
[383028792,1756822241439,-585.94518367,0.00013972,2]
[383028794,1756822241449,-480.0,0.00013972,2]
[383028796,1756822241459,-1223.45,0.00013972,2]
[383028797,1756822241468,-174.49,0.00013972,2]
[383028799,1756822241478,-480.0,0.00013972,2]
[383028801,1756822241488,-480.0,0.00013972,2]
[383028803,1756822241498,-480.0,0.00013972,2]
[383028805,1756822241507,-206.19,0.00013972,2]
[383028808,1756822241518,-480.0,0.00013972,2]
[383028810,1756822241528,-480.0,0.00013972,2]
[383028811,1756822241538,-480.0,0.00013972,2]
[383028813,1756822241547,-480.0,0.00013972,2]
[383028815,1756822241558,-480.0,0.00013972,2]
[383028817,1756822241569,-341.92,0.00013972,2]
[383028820,1756822241588,-216.26,0.00013972,2]
[383028823,1756822241600,-354.79,0.00013972,2]
[383028825,1756822241611,-496.12,0.00013972,2]
[383028827,1756822241621,-480.0,0.00013972,2]
[383028829,1756822241636,-2471.74,0.00013972,2]
[383028831,1756822241646,-480.0,0.00013972,2]
[383028833,1756822241656,-151.0,0.00013972,2]
[383028835,1756822241670,-480.0,0.00013972,2]
[383028837,1756822241681,-480.0,0.00013972,2]
[383028839,1756822241691,-1048.16,0.00013972,2]
[383028841,1756822241701,-501.54,0.00013972,2]
[383028843,1756822241713,-548.26,0.00013972,2]
[383028845,1756822241725,-877.72,0.00013972,2]
[383028848,1756822241735,-480.0,0.00013972,2]
[383028850,1756822241745,-480.0,0.00013972,2]
[383028852,1756822241754,-848.46,0.00013972,2]
[383028853,1756822241765,-677.4,0.00013972,2]
[383028856,1756822241775,-480.0,0.00013972,2]
[383028858,1756822241785,-480.0,0.00013972,2]
[383028859,1756822241795,-480.0,0.00013972,2]
[383028862,1756822241804,-573.22,0.00013972,2]
[383028863,1756822241814,-480.0,0.00013972,2]
[383028865,1756822241824,-516.23340823,0.00013972,2]
[383028867,1756822241833,-480.0,0.00013972,2]
[383028869,1756822241843,-480.0,0.00013972,2]
[383028871,1756822241853,-611.65,0.00013972,2]
[383028873,1756822241863,-480.0,0.00013972,2]
[383028875,1756822241873,-480.0,0.00013972,2]
[383028877,1756822241882,-622.7,0.00013972,2]
[383028879,1756822241892,-154.45,0.00013972,2]
[383028881,1756822241902,-216.246,0.00013984,2]
[383028884,1756822241912,-975.0,0.00014004,2]
[383028886,1756822241923,-632.0,0.00014004,2]
[383028888,1756822241933,-2153.0,0.00014004,2]
[383028890,1756822241943,-151.0,0.00014051,2]
[383028892,1756822241954,-151.0,0.00014051,2]
[383028894,1756822241964,-151.0,0.00014051,2]
[383028895,1756822241974,-846.21894513,0.00014085,2]
[383028898,1756822241986,-530.22964562,0.00014085,2]
[383028900,1756822241995,-217.47380718,0.00014085,2]
[383028902,1756822242005,-160.0,0.00014085,2]
[383028904,1756822242014,-232.87008258,0.00014085,2]
[383028906,1756822242024,-417.15472785,0.00014085,2]
[383028908,1756822242034,-160.0,0.00014085,2]
[383028910,1756822242045,-160.0,0.00014085,2]
[383028912,1756822242055,-187.16428715,0.00014146,2]
[383028914,1756822242065,-500.0,0.00014243,2]
[383028916,1756822242074,-151.0,0.00014246,2]
[383028918,1756822242084,-151.0,0.00014246,2]
[383028920,1756822242093,-151.0,0.00014246,2]
[383028922,1756822242104,-480.0,0.00014246,2]
[383028924,1756822242113,-290.21,0.00014246,2]
[383028926,1756822242123,-550.62,0.00014246,2]
[383028928,1756822242132,-480.0,0.00014246,2]
[383028930,1756822242142,-480.0,0.00014246,2]
[383028932,1756822242151,-480.0,0.00014246,2]
[383028934,1756822242161,-480.0,0.00014246,2]
[383028936,1756822242173,-480.0,0.00014246,2]
[383028938,1756822242183,-238.3,0.00014246,2]
[383028940,1756822242193,-480.0,0.00014246,2]
[383028942,1756822242202,-480.0,0.00014246,2]
[383028944,1756822242215,-480.0,0.00014246,2]
[383028946,1756822242225,-362.88,0.00014246,2]
[383028948,1756822242234,-480.0,0.00014246,2]
[383028950,1756822242244,-480.0,0.00014246,2]
[383028952,1756822242254,-295.2,0.00014246,2]
[383028955,1756822242264,-745.32,0.00014246,2]
[383028957,1756822242273,-480.0,0.00014246,2]
[383028959,1756822242284,-480.0,0.00014246,2]
[383028961,1756822242293,-545.94,0.00014246,2]
[383028963,1756822242303,-199.85,0.00014246,2]
[383028965,1756822242313,-480.0,0.00014246,2]
[383028967,1756822242323,-480.0,0.00014246,2]
[383028968,1756822242332,-480.0,0.00014246,2]
[383028971,1756822242342,-180.7,0.00014246,2]
[383028972,1756822242352,-480.0,0.00014246,2]
[383028974,1756822242362,-211.73,0.00014246,2]
[383028976,1756822242372,-480.0,0.00014246,2]
[383028979,1756822242382,-1084.74,0.00014246,2]
[383028981,1756822242392,-482.59,0.00014246,2]
[383028983,1756822242402,-480.0,0.00014246,2]
[383028985,1756822242411,-480.0,0.00014246,2]
[383028987,1756822242423,-480.0,0.00014246,2]
[383028989,1756822242433,-170.19,0.00014246,2]
[383028991,1756822242443,-480.0,0.00014246,2]
[383028993,1756822242453,-246.34,0.00014246,2]
[383028994,1756822242463,-539.88204835,0.00014246,2]
[383028996,1756822242472,-480.0,0.00014246,2]
[383028999,1756822242482,-750.17,0.00014246,2]
[383029000,1756822242493,-480.0,0.00014246,2]
[383029003,1756822242503,-218.41,0.00014246,2]
[383029004,1756822242513,-480.0,0.00014246,2]
[383029007,1756822242523,-553.39,0.00014246,2]
[383029008,1756822242533,-480.0,0.00014246,2]
[383029010,1756822242542,-480.0,0.00014246,2]
[383029012,1756822242552,-480.0,0.00014246,2]
[383029014,1756822242562,-480.0,0.00014246,2]
[383029016,1756822242572,-1857.69,0.00014246,2]
[383029018,1756822242582,-480.0,0.00014246,2]
[383029021,1756822242592,-1223.45,0.00014246,2]
[383029023,1756822242601,-480.0,0.00014246,2]
[383029024,1756822242612,-175.0,0.00014246,2]
[383029026,1756822242622,-480.0,0.00014246,2]
[383029028,1756822242633,-480.0,0.00014246,2]
[383029030,1756822242647,-480.0,0.00014246,2]
[383029032,1756822242657,-480.0,0.00014246,2]
[383029035,1756822242672,-162.48,0.00014246,2]
[383029037,1756822242683,-480.0,0.00014246,2]
[383029039,1756822242693,-2471.74,0.00014246,2]
[383029041,1756822242702,-189.26367598,0.00014246,2]
[383029043,1756822242714,-480.0,0.00014246,2]
[383029045,1756822242724,-1048.16,0.00014246,2]
[383029047,1756822242734,-501.54,0.00014246,2]
[383029049,1756822242744,-877.72,0.00014246,2]
[383029051,1756822242754,-480.0,0.00014246,2]
[383029053,1756822242764,-480.0,0.00014246,2]
[383029055,1756822242774,-848.46,0.00014246,2]
[383029057,1756822242784,-480.0,0.00014246,2]
[383029059,1756822242793,-480.0,0.00014246,2]
[383029061,1756822242803,-480.0,0.00014246,2]
[383029064,1756822242812,-677.4,0.00014246,2]
[383029066,1756822242823,-573.22,0.00014246,2]
[383029068,1756822242835,-480.0,0.00014246,2]
[383029070,1756822242845,-480.0,0.00014246,2]
[383029072,1756822242856,-480.0,0.00014246,2]
[383029074,1756822242867,-611.65,0.00014246,2]
[383029076,1756822242876,-274.12,0.00014246,2]
[383029078,1756822242886,-480.0,0.00014246,2]
[383029080,1756822242896,-500.0,0.00014252,2]
[383029082,1756822242905,-500.0,0.00014252,2]
[383029084,1756822242918,-168.0,0.00014258,2]
[383029087,1756822242928,-500.0,0.00014264,2]
[383029090,1756822242939,-500.78819518,0.00014264,2]
[383029095,1756822242949,-500.0,0.00014264,2]
[383029098,1756822242959,-500.0,0.0001429,2]
[383029099,1756822242969,-500.0,0.0001429,2]
[383029100,1756822242979,-500.0,0.0001429,2]
[383029101,1756822242988,-500.0,0.0001429,2]
[383029102,1756822242998,-500.0,0.0001429,2]
[383029103,1756822243007,-500.0,0.0001429,2]
[383029104,1756822243016,-500.0,0.0001429,2]
[383029105,1756822243026,-258.2006534,0.0001429,2]
[383029106,1756822243036,-572.91097928,0.0001429,2]
[383029108,1756822243045,-500.0,0.0001429,2]
[383029109,1756822243055,-500.0,0.0001429,2]
[383029112,1756822243065,-500.0,0.00014293,2]
[383029115,1756822243075,-1315.7015245,0.00014306,2]
[383029118,1756822243085,-500.0,0.00014361,2]
[383029120,1756822243094,-500.51471,0.00014371,2]
[383029122,1756822243105,-500.51707707,0.00014371,2]
[383029124,1756822243115,-500.0,0.00014371,2]
[383029126,1756822243124,-168.0,0.00014392,2]
[383029128,1756822243134,-313.76290624,0.0001442,2]
[383029130,1756822243143,-501.03620947,0.00014491,2]
[383029132,1756822243153,-151.0,0.000145,2]
[383029134,1756822243162,-168.0,0.00014518,2]
[383029136,1756822243174,-480.0,0.0001452,2]
[383029138,1756822243184,-480.0,0.0001452,2]
[383029140,1756822243193,-151.0,0.0001452,2]
[383029142,1756822243203,-480.0,0.0001452,2]
[383029144,1756822243212,-253.93,0.0001452,2]
[383029146,1756822243222,-480.0,0.0001452,2]
[383029148,1756822243232,-480.0,0.0001452,2]
[383029150,1756822243241,-357.64506393,0.0001452,2]
[383029152,1756822243251,-166.61944837,0.0001452,2]
[383029154,1756822243261,-419.82,0.0001452,2]
[383029156,1756822243271,-484.67,0.0001452,2]
[383029159,1756822243281,-480.0,0.0001452,2]
[383029161,1756822243297,-745.32,0.0001452,2]
[383029163,1756822243307,-480.0,0.0001452,2]
[383029165,1756822243316,-480.0,0.0001452,2]
[383029167,1756822243327,-545.94,0.0001452,2]
[383029169,1756822243337,-480.0,0.0001452,2]
[383029171,1756822243346,-480.0,0.0001452,2]
[383029173,1756822243356,-480.0,0.0001452,2]
[383029175,1756822243366,-480.0,0.0001452,2]
[383029178,1756822243376,-480.0,0.0001452,2]
[383029180,1756822243386,-1084.74,0.0001452,2]
[383029182,1756822243395,-480.0,0.0001452,2]
[383029184,1756822243409,-480.0,0.0001452,2]
[383029186,1756822243422,-480.0,0.0001452,2]
[383029208,1756822243589,-480.0,0.0001452,2]
[383029211,1756822243600,-480.0,0.0001452,2]
[383029214,1756822243610,-750.17,0.0001452,2]
[383029217,1756822243620,-480.0,0.0001452,2]
[383029220,1756822243632,-283.25832351,0.0001452,2]
[383029223,1756822243642,-553.39,0.0001452,2]
[383029225,1756822243652,-480.0,0.0001452,2]
[383029227,1756822243662,-480.0,0.0001452,2]
[383029229,1756822243676,-480.0,0.0001452,2]
[383029232,1756822243686,-480.0,0.0001452,2]
[383029234,1756822243696,-1857.69,0.0001452,2]
[383029237,1756822243707,-480.0,0.0001452,2]
[383029240,1756822243717,-1223.45,0.0001452,2]
[383029243,1756822243728,-480.0,0.0001452,2]
[383029246,1756822243738,-236.23,0.0001452,2]
[383029248,1756822243747,-480.0,0.0001452,2]
[383029250,1756822243756,-480.0,0.0001452,2]
[383029252,1756822243766,-480.0,0.0001452,2]
[383029254,1756822243775,-151.0,0.0001452,2]
[383029256,1756822243784,-480.0,0.0001452,2]
[383029258,1756822243793,-2471.74,0.0001452,2]
[383029260,1756822243803,-480.0,0.0001452,2]
[383029262,1756822243813,-1048.16,0.0001452,2]
[383029264,1756822243822,-501.54,0.0001452,2]
[383029266,1756822243833,-877.72,0.0001452,2]
[383029268,1756822243843,-480.0,0.0001452,2]
[383029270,1756822243852,-480.0,0.0001452,2]
[383029272,1756822243862,-848.46,0.0001452,2]
[383029274,1756822243872,-480.0,0.0001452,2]
[383029276,1756822243883,-204.86565476,0.0001452,2]
[383029278,1756822243893,-480.0,0.0001452,2]
[383029280,1756822243902,-480.0,0.0001452,2]
[383029283,1756822243912,-677.4,0.0001452,2]
[383029285,1756822243929,-573.22,0.0001452,2]
[383029287,1756822243939,-480.0,0.0001452,2]
[383029289,1756822243951,-480.0,0.0001452,2]
[383029290,1756822243960,-480.0,0.0001452,2]
[383029292,1756822243970,-611.65,0.0001452,2]
[383029294,1756822243980,-480.0,0.0001452,2]
[383029297,1756822243991,-500.0,0.00014536,2]
[383029298,1756822244001,-4000.0,0.00014571,2]
[383029301,1756822244012,-1593.84111737,0.00014572,2]
[383029302,1756822244022,-984.53989447,0.0001479,2]
[383029304,1756822244032,-500.0,0.0001479,2]
[383029307,1756822244042,-241.48796541,0.00014794,2]
[383029309,1756822244052,-480.0,0.00014794,2]
[383029311,1756822244062,-480.0,0.00014794,2]
[383029313,1756822244072,-480.0,0.00014794,2]
[383029315,1756822244082,-480.0,0.00014794,2]
[383029317,1756822244092,-160.04,0.00014794,2]
[383029319,1756822244101,-465.13101064,0.00014794,2]
[383029321,1756822244112,-745.32,0.00014794,2]
[383029323,1756822244122,-480.0,0.00014794,2]
[383029325,1756822244131,-480.0,0.00014794,2]
[383029327,1756822244141,-545.94,0.00014794,2]
[383029329,1756822244151,-195.88,0.00014794,2]
[383029331,1756822244160,-480.0,0.00014794,2]
[383029333,1756822244176,-320.02,0.00014794,2]
[383029335,1756822244186,-480.0,0.00014794,2]
[383029337,1756822244196,-480.0,0.00014794,2]
[383029339,1756822244206,-1084.74,0.00014794,2]
[383029341,1756822244215,-480.0,0.00014794,2]
[383029343,1756822244225,-474.97,0.00014794,2]
[383029345,1756822244235,-480.0,0.00014794,2]
[383029347,1756822244245,-480.0,0.00014794,2]
[383029349,1756822244255,-480.0,0.00014794,2]
[383029351,1756822244265,-750.17,0.00014794,2]
[383029353,1756822244274,-480.0,0.00014794,2]
[383029355,1756822244283,-553.39,0.00014794,2]
[383029357,1756822244292,-480.0,0.00014794,2]
[383029359,1756822244302,-480.0,0.00014794,2]
[383029361,1756822244312,-480.0,0.00014794,2]
[383029363,1756822244322,-273.11509778,0.00014794,2]
[383029365,1756822244331,-1857.69,0.00014794,2]
[383029367,1756822244341,-360.45,0.00014794,2]
[383029369,1756822244350,-1223.45,0.00014794,2]
[383029371,1756822244361,-480.0,0.00014794,2]